bitfinex-derivatives/quotes_ETHF0:USTF0_20250501
["timestamp","ask_amount","ask_price","bid_price","bid_amount"]
[1746093002884,0.04267,1822.2,1822.1,1.09746]
[1746093003089,0.04267,1822.2,1822.1,7.84126]
[1746093003277,1.7326,1822.6,1822.5,1.09722]
[1746093003484,2.1845255,1822.6,1822.5,4.30502]
[1746093003689,2.1845255,1822.6,1822.5,45.10502]
[1746093003989,7.1845255,1822.6,1822.3,3.2078]
[1746093004286,3.1324755,1822.5,1822.3,4.30513]
[1746093004585,8.788,1822.6,1822.3,3.2078]
[1746093004586,2.8788255,1822.4,1822.3,3.2078]
[1746093004782,2.8788255,1822.4,1822.3,4.30514]
[1746093005092,11.6668255,1822.4,1822.3,4.30514]
[1746093005284,12.5117255,1822.4,1822.3,4.30514]
[1746093005781,12.5122792,1822.4,1822.3,4.30514]
[1746093006990,12.5122792,1822.4,1822.3,1.09734]
[1746093007387,7.5122792,1822.4,1822.3,1.09734]
[1746093007588,7.51264358,1822.4,1822.3,1.09734]
[1746093007788,1.09734,1822.3,1822.2,41.89739]
[1746093007995,3.26448358,1822.3,1822.2,41.8974]
[1746093008291,12.05248358,1822.3,1822.2,1.0974]
[1746093009388,12.05248358,1822.3,1822.1,40.8]
[1746093009594,4.88534,1822.3,1822.2,1.0974]
[1746093009787,5.33832244,1822.3,1822.2,1.0974]
[1746093009988,1.09753,1822.1,1822.0,1.09749]
[1746093010290,1.55051244,1822.1,1822.0,1.09749]
[1746093010590,0.45298244,1822.1,1822.0,1.09749]
[1746093010792,1.55044244,1822.1,1822.0,1.09749]
[1746093010992,2.13748244,1822.1,1822.0,1.09749]
[1746093011194,5.92548244,1822.1,1822.0,1.09749]
[1746093012389,1.09753,1822.0,1821.9,3.2078]
[1746093012587,1.55051244,1822.0,1821.9,3.2078]
[1746093013182,5.33851244,1822.0,1821.9,3.2078]
[1746093013491,1.09767,1821.8,1821.7,1.0977]
[1746093013696,1.55065244,1821.8,1821.7,4.3055]
[1746093013996,1.55065244,1821.8,1821.7,45.1055]
[1746093014188,5.33865244,1821.8,1821.7,45.1055]
[1746093014795,4.24098244,1821.8,1821.7,45.1055]
[1746093015299,5.94666639,1821.8,1821.7,45.1055]
[1746093015598,7.04431639,1821.8,1821.7,45.1055]
[1746093016193,3.25631639,1821.8,1821.7,45.1055]
[1746093017090,6.59145,1821.8,1821.7,45.1055]
[1746093017295,7.04426124,1821.8,1821.7,45.1055]
[1746093018295,3.25626124,1821.8,1821.7,45.1055]
[1746093019097,2.15848888,1821.8,1821.7,45.1055]
[1746093019293,3.25613888,1821.8,1821.7,44.0078]
[1746093019594,3.25613888,1821.8,1821.7,45.10551]
[1746093020096,3.25613888,1821.8,1821.7,44.0078]
[1746093020701,3.25613888,1821.8,1821.7,45.10551]
[1746093021000,3.25608837,1821.8,1821.7,45.10551]
[1746093022599,2.15843837,1821.8,1821.7,45.10551]
[1746093022799,1.09758,1822.0,1821.8,1.09761]
[1746093022998,2.74367,1822.1,1821.8,1.09761]
[1746093022999,1.09759,1821.9,1821.8,1.09765]
[1746093024101,4.88559,1821.9,1821.8,1.09765]
[1746093026104,1.09759,1821.9,1821.8,1.09765]
[1746093026307,2.85469,1822.0,1821.9,1.09759]
[1746093026604,7.31535645,1822.4,1822.3,1.09734]
[1746093026800,2.26157126,1822.4,1822.3,7.83914]
[1746093027597,9.12296257,1822.5,1822.3,14.51814]
[1746093027804,10.99129422,1822.8,1822.7,1.0971]
[1746093027997,10.99129422,1822.8,1822.7,8.26864454]
[1746093028197,10.99129422,1822.8,1822.7,54.06864454]
[1746093028597,9.15086258,1822.9,1822.8,1.09704]
[1746093028806,9.15086258,1822.9,1822.8,3.62224]
[1746093029299,9.15086258,1822.9,1822.8,8.62224]
[1746093029493,9.15086258,1822.9,1822.8,9.04054684]
[1746093029699,9.15086258,1822.9,1822.8,3.62224]
[1746093030302,12.93886258,1822.9,1822.8,9.03399195]
[1746093030697,12.93886258,1822.9,1822.8,3.62224]
[1746093032105,9.15086258,1822.9,1822.8,8.62224]
[1746093032901,12.59409422,1823.2,1823.1,1.09686]
[1746093032902,1.6028,1823.2,1823.1,1.09686]
[1746093033102,0.8422,1823.5,1823.1,5.94995]
[1746093033303,5.876,1824.4,1823.4,2.74171]
[1746093033504,3.4019,1824.2,1823.8,3.2078]
[1746093033701,1.6665,1824.1,1823.8,4.30421]
[1746093033902,1.6665,1824.1,1824.0,1.09632]
[1746093034103,10.99129422,1824.3,1824.2,1.0962]
[1746093034399,5.69173023,1824.3,1824.2,7.837]
[1746093034599,5.69173023,1824.3,1824.2,47.5408]
[1746093035105,18.12218893,1824.3,1823.8,3.2078]
[1746093035305,3.2078,1824.0,1823.4,3.2078]
[1746093035611,1.26578428,1823.9,1823.5,40.8]
[1746093035798,1.7354,1823.9,1823.5,42.4959]
[1746093035997,1.09652,1823.7,1823.5,40.8]
[1746093036203,4.30426,1823.8,1823.5,40.8]
[1746093036404,4.30426,1823.8,1823.4,3.2078]
[1746093036603,1.09658,1823.6,1823.4,3.2078]
[1746093036808,4.30439,1823.6,1823.4,40.8]
[1746093037012,3.2078,1823.6,1823.4,40.8]
[1746093037304,1.6717,1823.5,1823.2,14.0501755]
[1746093037610,4.30454,1823.3,1823.2,7.3093755]
[1746093037911,3.2078,1823.3,1823.2,7.3093755]
[1746093038207,8.6675,1823.3,1823.2,7.3093755]
[1746093038410,9.76424,1823.3,1823.2,7.3093755]
[1746093039005,15.19832458,1823.3,1823.2,7.3093755]
[1746093039608,1.09696,1823.0,1822.8,40.8]
[1746093039808,0.8543,1822.9,1822.8,40.8]
[1746093040009,2.5479,1822.9,1822.8,40.8]
[1746093040206,3.788,1823.0,1822.9,1.09698]
[1746093040807,3.788,1823.0,1822.9,2.5008]
[1746093041107,3.788,1823.0,1822.8,45.10481]
[1746093041108,1.09698,1822.9,1822.6,6.80574]
[1746093041314,0.8543,1822.8,1822.6,4.30495]
[1746093041511,1.6936,1822.7,1822.6,3.2078]
[1746093041711,1.6936,1822.7,1822.6,44.0078]
[1746093041906,0.8543,1822.8,1822.6,46.75006]
[1746093042110,3.788,1823.0,1822.6,46.75006]
[1746093042111,3.788,1823.0,1822.9,1.09698]
[1746093042305,2.4635,1823.3,1822.9,3.2078]
[1746093042505,3.56028,1823.3,1822.9,3.2078]
[1746093042805,2.70603,1823.2,1823.0,1.6678]
[1746093043000,1.6092,1823.1,1822.8,4.62902]
[1746093043314,5.3972,1823.1,1822.9,5.97257]
[1746093043515,3.788,1823.1,1823.0,2.76472]
[1746093044214,1.09664,1823.5,1823.1,1.09681]
[1746093044417,2.70584,1823.5,1823.2,3.2078]
[1746093044712,1.09668,1823.4,1823.3,1.6678]
[1746093044907,1.0968,1823.2,1823.1,3.532]
[1746093045111,1.09686,1823.1,1823.0,3.2078]
[1746093045309,1.6046,1823.1,1822.8,4.62904]
[1746093045607,1.6046,1823.1,1822.9,2.80038]
[1746093045810,2.70148,1823.1,1822.9,6.00818]
[1746093046011,1.6046,1823.1,1822.9,3.2078]
[1746093046212,3.53542,1823.0,1822.9,3.2078]
[1746093047108,7.32342,1823.0,1822.9,3.2078]
[1746093047607,7.32342,1823.0,1822.8,5.2354]
[1746093047608,1.09698,1822.9,1822.8,3.532]
[1746093047808,1.0971,1822.7,1822.6,44.0078]
[1746093048002,1.0971,1822.7,1822.6,40.8]
[1746093048200,3.788,1822.7,1822.6,41.89716]
[1746093048713,4.8851,1822.7,1822.6,40.8]
[1746093048915,6.465,1822.7,1822.6,40.8]
[1746093049413,1.09716,1822.6,1822.5,3.532]
[1746093049610,3.54966,1822.6,1822.5,3.532]
[1746093049806,3.54966,1822.6,1822.4,4.30507]
[1746093050008,2.67712,1822.5,1822.4,3.2078]
[1746093050316,1.5799,1822.5,1822.4,4.30508]
[1746093050510,1.5799,1822.5,1822.4,45.10508]
[1746093050814,2.67712,1822.5,1822.4,44.0078]
[1746093051008,1.5799,1822.5,1822.4,45.10508]
[1746093051208,3.788,1822.5,1822.4,45.10508]
[1746093052909,3.788,1822.5,1822.4,50.10508]
[1746093054016,3.788,1822.5,1822.4,45.10508]
[1746093054407,3.788,1822.5,1822.4,44.0078]
[1746093054613,4.20583064,1822.5,1822.4,44.0078]
[1746093054813,5.87843064,1822.5,1822.4,45.10508]
[1746093055111,5.8784051,1822.5,1822.4,45.10508]
[1746093057315,4.2058051,1822.5,1822.4,45.10508]
[1746093057822,3.788,1822.5,1822.4,50.93268]
[1746093059516,3.788,1822.5,1822.4,45.93268]
[1746093060614,3.788,1822.5,1822.4,46.78598]
[1746093062810,2.50059,1822.5,1822.4,46.78598]
[1746093063015,1.6652,1823.2,1823.1,1.09686]
[1746093063221,2.08331579,1823.2,1823.1,1.09686]
[1746093063422,7.08331579,1823.2,1823.0,3.2078]
[1746093063618,2.840416,1823.1,1823.0,4.30467]
[1746093064030,2.840416,1823.1,1823.0,6.83837]
[1746093064228,3.788,1823.1,1823.0,6.83837]
[1746093064830,1.23222,1823.1,1823.0,6.83837]
[1746093065032,0.10396,1823.1,1823.0,6.83837]
[1746093065333,1e-05,1823.1,1823.0,6.83837]
[1746093065526,1e-05,1823.1,1823.0,47.63837]
[1746093065935,1e-05,1823.1,1823.0,52.63837]
[1746093066130,0.8403,1823.7,1823.6,1.09656]
[1746093066326,1.25940177,1823.7,1823.6,1.09656]
[1746093066626,0.41910177,1823.7,1823.6,1.09656]
[1746093066931,0.41910177,1823.7,1823.6,2.67336]
[1746093067131,4.20710177,1823.7,1823.6,2.67336]
[1746093067327,4.20678985,1823.7,1823.6,2.67336]
[1746093067730,4.20678985,1823.7,1823.6,1.09656]
[1746093068125,4.20678985,1823.7,1823.6,41.89656]
[1746093069235,11.19698985,1823.7,1823.5,4.30439]
[1746093069441,2.91148985,1823.6,1823.5,1.09659]
[1746093069736,2.91148985,1823.6,1823.5,41.89659]
[1746093069927,13.86069985,1823.6,1823.3,1.09669]
[1746093070123,2.00298985,1823.5,1823.0,2.74229]
[1746093070329,3.09972985,1823.4,1823.3,1.09674]
[1746093070526,5.21078985,1823.4,1823.3,1.09674]
[1746093070729,2.00298985,1823.4,1823.3,1.09674]
[1746093071031,1.5842,1823.4,1823.3,1.09674]
[1746093071234,5.79069245,1823.4,1823.3,1.09674]
[1746093071535,1.09677,1823.3,1823.2,1.09676]
[1746093071728,2.86189245,1823.3,1823.2,1.09676]
[1746093072136,6.64989245,1823.3,1823.2,1.09676]
[1746093072934,4.20639621,1823.3,1823.2,7.98756]
[1746093073234,3.788,1823.3,1823.2,7.98756]
[1746093073436,4.20634973,1823.3,1823.2,4.77976]
[1746093073635,4.20640135,1823.3,1823.2,1.09676]
[1746093074030,4.20645018,1823.3,1823.2,1.09676]
[1746093074230,4.20642407,1823.3,1823.2,4.30456]
[1746093074431,4.20642034,1823.3,1823.2,4.30456]
[1746093074627,4.20642112,1823.3,1823.2,4.30456]
[1746093075335,4.20642112,1823.3,1823.2,1.09676]
[1746093075539,4.20642112,1823.3,1823.2,4.30456]
[1746093075834,4.20642112,1823.3,1823.2,7.98756]
[1746093076140,3.788,1823.3,1823.2,7.98756]
[1746093076339,3.788,1823.3,1823.2,8.86146]
[1746093076634,3.788,1823.3,1823.2,10.59086]
[1746093077035,3.788,1823.3,1823.2,51.39086]
[1746093079936,2.57187,1823.3,1823.2,51.39086]
[1746093080131,1e-05,1823.3,1823.2,56.39086]
[1746093080332,1e-05,1823.3,1823.2,51.39086]
[1746093081040,1e-05,1823.3,1823.2,50.51696]
[1746093081241,1e-05,1823.3,1823.2,48.78756]
[1746093081532,0.41823544,1823.3,1823.2,48.78756]
[1746093081727,2.06743544,1823.3,1823.2,48.78756]
[1746093082437,2.06750697,1823.3,1823.2,48.78756]
[1746093082834,2.06750697,1823.3,1823.2,6.8908]
[1746093083035,7.06750697,1823.3,1823.2,3.683]
[1746093083237,10.27530697,1823.3,1822.9,3.705]
[1746093083536,10.27530697,1823.3,1822.5,7.3093755]
[1746093083537,2.74232,1823.0,1822.5,7.3093755]
[1746093083733,1.09716,1822.6,1822.5,5.9449755]
[1746093084038,1.09728,1822.4,1822.3,14.59937587]
[1746093084241,1.09728,1822.4,1822.2,18.23802979]
[1746093084242,1.09734,1822.3,1822.2,18.23802979]
[1746093084541,5.2211645,1822.3,1822.2,8.63734977]
[1746093084835,9.1238245,1822.3,1822.0,16.97432105]
[1746093085036,4.30526,1822.1,1822.0,16.97432105]
[1746093085231,0.4188245,1822.1,1822.0,18.34619947]
[1746093085840,0.4188245,1822.1,1822.0,26.69814924]
[1746093086038,0.4188245,1822.1,1822.0,28.31784924]
[1746093086338,3.2078,1822.7,1822.6,1.09716]
[1746093086543,3.2078,1822.7,1822.5,1.37153842]
[1746093086743,17.28653675,1822.7,1822.5,1.37153842]
[1746093087042,17.28653675,1822.7,1822.6,1.09716]
[1746093087246,21.07453675,1822.7,1822.6,1.09716]
[1746093087542,21.07453675,1822.7,1822.5,1.37152842]
[1746093087740,21.07453675,1822.7,1822.6,1.09716]
[1746093088043,21.07453675,1822.7,1822.6,0.27434842]
[1746093088236,21.07453675,1822.7,1822.6,1.37150842]
[1746093088438,22.77663675,1822.7,1822.6,1.37150842]
[1746093088638,17.77663675,1822.7,1822.6,0.27434842]
[1746093089443,18.87373675,1822.7,1822.6,0.27434842]
[1746093089646,17.77663675,1822.7,1822.6,0.27434842]
[1746093089844,1.09716,1822.6,1822.5,0.27434842]
[1746093090145,2.79931,1822.6,1822.3,1.37167842]
[1746093090443,3.706,1822.5,1822.3,1.37167842]
[1746093090640,1.7021,1822.4,1822.3,0.27434842]
[1746093091047,7.79938,1822.4,1822.3,0.27434842]
[1746093091244,11.58738,1822.4,1822.3,0.27434842]
[1746093091747,11.58738,1822.4,1822.1,0.27434842]
[1746093091748,1.09739,1822.3,1822.1,0.27434842]
[1746093091949,2.7507,1822.2,1822.1,0.27434842]
[1746093092447,1.6533,1822.2,1822.1,0.27434842]
[1746093092748,1.6533,1822.2,1822.1,1.37180842]
[1746093092940,2.7507,1822.2,1822.1,0.27434842]
[1746093093137,1.6533,1822.2,1822.1,1.37180842]
[1746093093346,3.788,1822.2,1822.1,3.00050842]
[1746093093947,4.8854,1822.2,1822.1,1.90304842]
[1746093094151,5.383,1822.2,1822.1,3.00050842]
[1746093094649,6.4804,1822.2,1822.1,1.90304842]
[1746093094948,6.4804,1822.2,1822.1,0.27434842]
[1746093095147,1.09746,1822.1,1822.0,0.36744842]
[1746093095337,2.69246,1822.1,1822.0,0.0931]
[1746093095539,10.99701294,1822.1,1822.0,0.0931]
[1746093095747,1.09759,1821.9,1821.8,0.27434842]
[1746093095946,8.01239,1821.9,1821.8,0.27434842]
[1746093096148,16.80039,1821.9,1821.8,0.27434842]
[1746093096350,1.09765,1821.8,1821.7,0.27434842]
[1746093096542,1.595,1821.8,1821.7,1.37205842]
[1746093096743,3.788,1821.9,1821.8,1.09765]
[1746093096943,3.788,1821.9,1821.8,9.44959977]
[1746093097548,3.788,1821.9,1821.8,9.72394819]
[1746093098253,3.788,1821.9,1821.7,3.48214842]
[1746093098446,2.76135,1821.8,1821.7,3.48214842]
[1746093098847,2.76135,1821.8,1821.7,6.23895842]
[1746093099150,6.54935,1821.8,1821.7,5.14124842]
[1746093099354,6.54935,1821.8,1821.7,6.23895842]
[1746093099650,6.54935,1821.8,1821.7,3.48214842]
[1746093099852,1.09771,1821.7,1821.6,0.27434842]
[1746093100044,5.89811,1821.7,1821.6,0.27434842]
[1746093100249,3.788,1821.7,1821.6,9.72406819]
[1746093101353,3.788,1821.7,1821.6,12.93186819]
[1746093101950,3.788,1821.7,1821.6,14.50706819]
[1746093102547,3.2078,1822.2,1822.1,1.09745]
[1746093102749,3.61782921,1822.2,1822.1,1.09745]
[1746093103353,7.40582921,1822.2,1822.1,1.09745]
[1746093103555,3.788,1822.2,1822.1,1.09745]
[1746093103854,3.788,1822.2,1822.1,1.37179842]
[1746093104047,3.788,1822.2,1822.1,9.72374819]
[1746093104552,3.788,1822.2,1822.1,11.39274819]
[1746093108755,4.19906679,1822.2,1822.1,11.39274819]
[1746093109257,3.788,1822.2,1822.1,11.39274819]
[1746093109457,4.19936903,1822.2,1822.1,11.39274819]
[1746093109659,3.788,1822.2,1822.1,11.39274819]
[1746093111357,4.20040912,1822.2,1822.1,11.39274819]
[1746093111859,4.20040912,1822.2,1822.1,15.10074819]
[1746093112449,0.41240912,1822.2,1822.1,15.10074819]
[1746093112655,3.2078,1822.7,1822.5,1.09721]
[1746093112960,1.0971,1822.7,1822.6,11.10599819]
[1746093113262,3.788,1822.7,1822.6,12.20315819]
[1746093113453,3.788,1822.7,1822.6,3.85120842]
[1746093113855,3.788,1822.7,1822.6,7.05900842]
[1746093114253,4.8851,1822.7,1822.6,3.85120842]
[1746093115047,3.788,1822.7,1822.6,3.85120842]
[1746093115756,4.8851,1822.7,1822.6,3.85120842]
[1746093115947,4.8851,1822.7,1822.6,0.27434842]
[1746093116155,8.0929,1822.7,1822.6,0.27434842]
[1746093116457,3.788,1822.7,1822.6,1.37150842]
[1746093118159,3.788,1822.7,1822.6,9.72345819]
[1746093118860,3.788,1822.7,1822.6,12.93125819]
[1746093119064,0.991,1822.7,1822.6,17.93125819]
[1746093119562,0.991,1822.7,1822.6,58.73125819]
[1746093121066,4.72913512,1823.3,1823.2,1.37114842]
[1746093121260,3.63234512,1823.3,1823.2,9.72309819]
[1746093121559,4.72908512,1823.3,1823.2,1.37114842]
[1746093122162,7.42034512,1823.3,1823.2,10.58489819]
[1746093122962,3.788,1823.3,1823.2,10.58489819]
[1746093123958,3.788,1823.3,1823.2,51.38489819]
[1746093124165,3.788,1823.3,1823.2,53.10239819]
[1746093128569,3.788,1823.3,1823.2,58.10239819]
[1746093130469,3.788,1823.3,1823.2,53.10239819]
[1746093130769,3.788,1823.3,1823.2,58.10239819]
[1746093131174,3.63234512,1823.7,1823.6,1.09656]
[1746093131470,3.63234512,1823.7,1823.6,9.72285819]
[1746093131866,5.46595895,1823.8,1823.7,1.37084842]
[1746093131867,3.63234512,1823.8,1823.7,1.37084842]
[1746093132168,3.63234512,1823.8,1823.7,14.61089819]
[1746093132366,3.63234512,1823.8,1823.5,0.27434842]
[1746093132570,5.29784512,1823.8,1823.7,1.37084842]
[1746093132966,3.63234512,1823.8,1823.7,3.05114842]
[1746093133171,7.42034512,1823.8,1823.7,11.40309819]
[1746093135566,3.788,1823.8,1823.7,11.40309819]
[1746093137465,3.63234512,1824.5,1824.2,0.27434842]
[1746093137667,3.63234512,1824.5,1824.4,1.37042842]
[1746093137969,3.63234512,1824.5,1824.4,9.72237819]
[1746093138168,7.42034512,1824.5,1824.4,41.89608]
[1746093138375,9.14224512,1824.5,1824.4,43.78952842]
[1746093138667,7.42034512,1824.5,1824.4,52.14147819]
[1746093139075,7.42034512,1824.5,1824.4,55.34927819]
[1746093139470,8.51636512,1824.5,1824.4,44.28214842]
[1746093139672,15.09776512,1824.5,1824.4,44.28214842]
[1746093139973,1.09614,1824.3,1824.2,0.27434842]
[1746093140176,1.0962,1824.2,1824.1,0.27434842]
[1746093140371,6.9958,1824.3,1824.2,1.37054842]
[1746093140571,3.788,1824.3,1824.2,1.37054842]
[1746093140766,3.788,1824.3,1824.2,3.10614842]
[1746093141976,6.46554,1824.3,1824.2,0.27434842]
[1746093142164,7.33794,1824.3,1824.2,0.27434842]
[1746093142772,1.0962,1824.2,1824.1,0.27434842]
[1746093143072,1.09626,1824.1,1824.0,0.27434842]
[1746093143279,6.2723,1824.2,1824.1,1.37060842]
[1746093143575,7.3685,1824.2,1824.1,1.37060842]
[1746093144174,7.3685,1824.2,1824.1,0.27434842]
[1746093144377,7.3685,1824.2,1824.0,1.37063842]
[1746093144577,7.3685,1824.2,1824.0,1.37061842]
[1746093144880,4.6865,1824.2,1824.1,1.37060842]
[1746093145177,5.7827,1824.2,1824.1,0.27434842]
[1746093145379,6.2723,1824.2,1824.1,1.37060842]
[1746093145673,5.3738,1824.2,1824.1,1.37060842]
[1746093146377,6.47,1824.2,1824.1,1.37060842]
[1746093147078,3.788,1824.2,1824.1,9.72255819]
[1746093147479,3.788,1824.2,1824.1,11.37205819]
[1746093148080,3.788,1824.2,1824.1,10.27579819]
[1746093148081,4.8842,1824.2,1824.1,10.27579819]
[1746093148280,4.8842,1824.2,1824.1,0.27434842]
[1746093149079,4.8842,1824.2,1824.1,1.37060842]
[1746093149678,4.8842,1824.2,1824.1,11.42225819]
[1746093149880,3.788,1824.2,1824.1,11.42225819]
[1746093150278,6.5316,1824.2,1824.1,10.32599819]
[1746093150480,6.5316,1824.2,1824.1,1.97404842]
[1746093150678,6.5316,1824.2,1824.1,10.32599819]
[1746093150879,6.5316,1824.2,1824.1,0.27434842]
[1746093151469,7.4588,1824.2,1824.1,0.27434842]
[1746093153286,1.09638,1823.9,1823.8,0.27434842]
[1746093153585,1.09637,1824.0,1823.9,9.72263819]
[1746093153781,2.70527,1824.0,1823.9,9.72263819]
[1746093153983,2.70527,1824.0,1823.9,1.37068842]
[1746093154282,6.49327,1824.0,1823.9,1.37068842]
[1746093154481,4.88437,1824.0,1823.9,11.37693819]
[1746093154682,4.88437,1824.0,1823.9,0.27434842]
[1746093154870,6.52057,1824.0,1823.9,1.37072842]
[1746093155273,6.52057,1824.0,1823.9,3.10062842]
[1746093155480,5.4242,1824.0,1823.9,11.45257819]
[1746093155679,3.788,1824.0,1823.9,11.45257819]
[1746093155880,3.788,1824.0,1823.9,12.32067819]
[1746093158189,4.88432,1824.0,1823.9,12.32067819]
[1746093158389,6.53462,1824.0,1823.9,12.32067819]
[1746093158689,6.53462,1824.0,1823.9,0.27434842]
[1746093158889,7.47202,1824.0,1823.9,0.27434842]
[1746093159089,1.09638,1823.9,1823.8,0.27434842]
[1746093159289,1.0965,1823.7,1823.6,0.27434842]
[1746093160088,10.9546,1823.7,1823.6,0.27434842]
[1746093160287,9.7426,1823.7,1823.6,0.27434842]
[1746093160591,18.5216,1823.7,1823.6,0.27434842]
[1746093160790,1.09668,1823.4,1823.3,0.27434842]
[1746093161087,1.09668,1823.5,1823.4,1.37100842]
[1746093161293,1.09668,1823.5,1823.4,8.62629819]
[1746093161492,1.09668,1823.5,1823.4,0.27434842]
[1746093161982,2.69998,1823.5,1823.4,0.27434842]
[1746093162183,6.48798,1823.5,1823.4,0.27434842]
[1746093162792,6.48798,1823.5,1823.4,2.01064842]
[1746093162993,6.48798,1823.5,1823.4,3.10732842]
[1746093163187,3.788,1823.5,1823.4,11.45927819]
[1746093164094,4.88462,1823.5,1823.4,11.45927819]
[1746093164387,6.46282,1823.5,1823.4,11.45927819]
[1746093164590,4.88462,1823.5,1823.4,11.45927819]
[1746093164790,3.788,1823.5,1823.4,11.45927819]
[1746093167391,3.788,1823.5,1823.4,20.23927819]
[1746093167697,3.63234512,1823.7,1823.6,1.37090842]
[1746093167898,3.63234512,1823.7,1823.6,9.72285819]
[1746093168203,7.42034512,1823.7,1823.6,14.72285819]
[1746093168905,7.42034512,1823.7,1823.6,9.72285819]
[1746093169299,3.788,1823.7,1823.6,9.72285819]
[1746093171605,3.788,1823.7,1823.6,11.31665819]
[1746093173411,4.8845,1823.7,1823.6,0.27434842]
[1746093173610,4.8845,1823.7,1823.5,4.38834842]
[1746093173812,1.09656,1823.6,1823.5,13.83688819]
[1746093174003,4.88452,1823.7,1823.6,1.37090842]
[1746093174205,1.09652,1823.7,1823.6,1.37090842]
[1746093174408,1.0965,1823.7,1823.6,1.37090842]
[1746093174611,4.3043,1823.7,1823.6,0.27434842]
[1746093175101,8.0923,1823.7,1823.6,0.27434842]
[1746093176011,8.0923,1823.7,1823.6,1.37090842]
[1746093176307,1.09656,1823.6,1823.5,0.27434842]
[1746093176512,1.09662,1823.5,1823.4,1.37101842]
[1746093177215,4.88462,1823.5,1823.4,1.37101842]
[1746093177410,4.88462,1823.5,1823.4,3.07491842]
[1746093178216,3.788,1823.5,1823.4,3.07491842]
[1746093178511,3.788,1823.5,1823.4,14.63466819]
[1746093179615,4.88462,1823.5,1823.4,14.63466819]
[1746093180216,4.88462,1823.5,1823.4,0.27434842]
[1746093181613,1.09674,1823.3,1823.2,0.27434842]
[1746093182115,4.88474,1823.3,1823.2,0.27434842]
[1746093182318,8.09254,1823.3,1823.2,0.27434842]
[1746093183318,1.09686,1823.1,1823.0,0.27434842]
[1746093184217,4.88486,1823.1,1823.0,0.27434842]
[1746093184424,3.788,1823.1,1823.0,9.72321819]
[1746093184715,4.88486,1823.1,1823.0,11.46151819]
[1746093184915,4.88486,1823.1,1823.0,11.27379819]
[1746093185110,4.88486,1823.1,1823.0,0.27434842]
[1746093185311,3.788,1823.1,1823.0,9.72321819]
[1746093185506,3.788,1823.1,1823.0,11.39291819]
[1746093185817,3.788,1823.1,1823.0,17.38181819]
[1746093187421,2.37895,1823.1,1823.0,17.38181819]
[1746093187719,3.63234512,1823.3,1823.2,1.37114842]
[1746093187920,3.63234512,1823.3,1823.2,21.67889819]
[1746093188119,7.42034512,1823.3,1823.2,21.67889819]
[1746093188422,7.42034512,1823.3,1823.2,22.59689819]
[1746093189123,7.42034512,1823.3,1823.2,17.59689819]
[1746093189625,8.51708512,1823.3,1823.2,17.59689819]
[1746093189812,6.53734,1823.3,1823.2,17.59689819]
[1746093190122,6.53734,1823.3,1823.2,16.50009819]
[1746093190526,6.53734,1823.3,1823.2,8.32694842]
[1746093190822,6.53734,1823.3,1823.2,3.48214842]
[1746093191019,6.53734,1823.3,1823.2,0.27434842]
[1746093191922,1.0968,1823.2,1823.1,0.27434842]
[1746093192119,2.7424,1823.2,1823.1,0.27434842]
[1746093192317,1.6456,1823.2,1823.1,1.37120842]
[1746093193021,1.6456,1823.2,1823.1,14.72315819]
[1746093193219,3.63234512,1823.9,1823.4,2.74171]
[1746093193415,2.65,1823.8,1823.7,1.37084842]
[1746093193724,4.63584512,1823.9,1823.8,1.09644]
[1746093193923,2.6491,1823.9,1823.8,1.37078842]
[1746093194117,6.4371,1823.9,1823.8,3.06218842]
[1746093195021,3.788,1823.9,1823.8,11.41413819]
[1746093195227,3.788,1823.9,1823.8,14.62193819]
[1746093195926,2.57594,1823.9,1823.8,60.42193819]
[1746093196328,12.63012841,1824.5,1824.4,1.37042842]
[1746093196523,13.72614841,1824.5,1824.4,9.72237819]
[1746093196723,13.72614841,1824.5,1824.4,0.27434842]
[1746093197129,10.27104593,1824.5,1824.4,0.27434842]
[1746093197324,15.74783778,1824.5,1824.4,0.27434842]
[1746093197525,1.09608,1824.4,1824.3,0.27434842]
[1746093197830,1.7256,1824.4,1824.3,1.37048842]
[1746093198023,12.92101778,1824.5,1824.4,1.37042842]
[1746093198225,11.95463778,1824.5,1824.4,8.62629819]
[1746093198425,10.85861778,1824.5,1824.4,9.72237819]
[1746093199127,15.74263778,1824.5,1824.4,9.72237819]
[1746093199329,14.64661778,1824.5,1824.4,9.72237819]
[1746093199723,15.74263778,1824.5,1824.4,8.62629819]
[1746093199923,15.74263778,1824.5,1824.4,1.37042842]
[1746093200530,6.61465136,1824.5,1824.4,1.37042842]
[1746093200726,6.61465136,1824.5,1824.4,9.72237819]
[1746093200926,5.51863136,1824.5,1824.4,9.72237819]
[1746093201326,5.51863136,1824.5,1824.4,11.42697819]
[1746093203636,6.61465136,1824.5,1824.4,11.42697819]
[1746093204227,3.79303136,1824.5,1824.4,11.42697819]
[1746093204732,4.88905136,1824.5,1824.4,10.33089819]
[1746093204932,10.50213136,1824.5,1824.2,1.37053842]
[1746093205133,1.09614,1824.3,1824.2,0.27434842]
[1746093205432,4.163,1824.4,1823.9,0.27434842]
[1746093205735,1.09638,1823.9,1823.8,0.27434842]
[1746093205932,3.2078,1824.1,1823.9,0.27434842]
[1746093206235,2.0513,1824.4,1824.3,1.09614]
[1746093206430,1.09608,1824.4,1824.3,9.72243819]
[1746093206937,1.10110136,1824.5,1824.4,1.09608]
[1746093207136,2.70840136,1824.5,1824.4,11.13402977]
[1746093207434,2.70840136,1824.5,1824.4,11.40837819]
[1746093207628,0.00503136,1824.5,1824.4,11.40837819]
[1746093207829,0.00503136,1824.5,1824.4,14.61617819]
[1746093208127,3.79303136,1824.5,1824.4,14.61617819]
[1746093209029,3.79303136,1824.5,1824.4,11.40837819]
[1746093209525,3.79303136,1824.5,1824.4,14.61617819]
[1746093211832,3.79303136,1824.5,1824.4,18.34317819]
[1746093212739,3.79303136,1824.5,1824.4,16.65717819]
[1746093213037,6.51455136,1824.5,1824.4,16.65717819]
[1746093213534,6.51455136,1824.5,1824.4,3.48214842]
[1746093213844,9.72235136,1824.5,1824.4,0.27434842]